fUST/lending_fUST_20260203
["ID","MTS","AMOUNT","RATE_DAILY","PERIOD"]
[404418190,1770124238545,-500.0,0.00054794,120]
[404418191,1770124238555,-158.49688178,0.00054794,120]
[404418192,1770124238564,-981.01,0.00054794,120]
[404418193,1770124238574,-156.92358252,0.00054794,120]
[404418194,1770124238585,-1093.36,0.00054794,120]
[404418195,1770124238594,-500.0,0.00054794,120]
[404418196,1770124238603,-500.0,0.00054794,55]
[404418197,1770124238612,-500.0,0.00055,120]
[404418198,1770124238622,-500.0,0.00055,120]
[404418199,1770124238631,-235.33446207,0.00055915,2]
[404418201,1770124238641,-500.0,0.00056,120]
[404418202,1770124238651,-500.0,0.00056,120]
[404418203,1770124238660,-500.0,0.00058,120]
[404418205,1770124238670,-500.0,0.00058,120]
[404418206,1770124238679,-45256.53892159,0.00058,120]
[404418208,1770124238688,-1000.0,0.00059,120]
[404418210,1770124238697,-209.47509151,0.0005909,31]
[404418212,1770124238706,-165.44260292,0.0005909,5]
[404418214,1770124238715,-20000.0,0.000591,90]
[404418216,1770124238725,-500.0,0.00059199,120]
[404418218,1770124238735,-563.56000031,0.00059199,120]
[404418220,1770124238744,-20000.0,0.000592,91]
[404418222,1770124238754,-20000.0,0.000593,92]
[404418224,1770124238763,-165.44260292,0.0005939,5]
[404418226,1770124238772,-20000.0,0.000594,93]
[404418228,1770124238782,-20000.0,0.0005945,93]
[404418230,1770124238791,-165.44260292,0.0005945,5]
[404418232,1770124238800,-20000.0,0.0005946,93]
[404418234,1770124238809,-20000.0,0.0005947,94]
[404418236,1770124238819,-165.44260292,0.0005949,5]
[404418238,1770124238828,-20000.0,0.000595,95]
[404418240,1770124238838,-20000.0,0.0005951,95]
[404418242,1770124238847,-20000.0,0.0005952,95]
[404418244,1770124238857,-165.44260292,0.0005952,5]
[404418246,1770124238866,-20000.0,0.0005953,95]
[404418248,1770124238875,-20000.0,0.000596,100]
[404418250,1770124238885,-165.44260292,0.000596,5]
[404418252,1770124238894,-20000.0,0.0005961,100]
[404418254,1770124238903,-20000.0,0.0005962,100]
[404418256,1770124238912,-151.0,0.0005962,120]
[404418258,1770124238922,-151.0,0.0005962,120]
[404418260,1770124238931,-163.581396,0.0005962,7]
[404418262,1770124238940,-151.0,0.0005962,120]
[404418264,1770124238950,-20000.0,0.0005972,100]
[404418266,1770124238959,-165.44260292,0.0005972,5]
[404418268,1770124238968,-20000.0,0.0005973,100]
[404418270,1770124238978,-20000.0,0.0005974,110]
[404418272,1770124238987,-165.44260292,0.0005983,5]
[404418274,1770124238996,-20000.0,0.0005984,110]
[404418276,1770124239006,-20000.0,0.000599,110]
[404418278,1770124239015,-165.44260292,0.0005991,5]
[404418280,1770124239026,-6503.58931179,0.0005992,110]
[404418761,1770124246128,-1011.09705965,0.0005992,110]
[404418778,1770125391549,500.0,0.00027397,120]
[404418779,1770125392375,340.8954,0.00027671,120]
[404418821,1770125431954,-262.34555521,0.0002,7]
[404418823,1770125431964,-278.36143042,0.000215,2]
[404418825,1770125431975,-1200.0,0.000215,2]
[404418828,1770125431986,-5786.51398438,0.000215,2]
[404418830,1770125431995,-150.0,0.0002589,2]
[404418832,1770125432004,-1175.98599806,0.00026574,2]
[404418834,1770125432019,-24.01400194,0.00026574,2]
[404418836,1770125432029,-177.0,0.0002789,2]
[404418838,1770125432038,-888.0,0.0002887,2]
[404418840,1770125432047,-300.0,0.00029533,2]
[404418842,1770125432056,-204.0,0.0002989,2]
[404418844,1770125432065,-10595.97685632,0.00030137,2]
[404418846,1770125432076,-825.0,0.00030137,2]
[404418878,1770125437887,-150.0,0.0002075,2]
[404418880,1770125437898,-177.0,0.0002275,2]
[404418882,1770125437908,-204.0,0.0002475,2]
[404418884,1770125437917,-231.0,0.0002675,2]
[404418886,1770125437926,-1730.0870442,0.00030137,2]
[404418888,1770125437936,-500.0,0.00030137,7]
[404418890,1770125437946,-500.0,0.00030137,10]
[404418892,1770125437956,-500.0,0.00030137,7]
[404418894,1770125437967,-500.0,0.00030137,2]
[404418896,1770125437976,-234.89739417,0.00030137,2]
[404418898,1770125437985,-356.02,0.00031644,30]
[404418900,1770125437994,-1000.0,0.00032725,30]
[404418902,1770125438003,-189.04532067,0.0003275,2]
[404418904,1770125438014,-37.84613122,0.0003275,2]
[404418906,1770125438023,-356.02,0.00033151,30]
[404418908,1770125438033,-158.779,0.00034999,40]
[404418910,1770125438042,-500.0,0.00034999,2]
[404418912,1770125438051,-2157.62671971,0.00035,120]
[404418915,1770125438064,-14543.69960096,0.00035,120]
[404418917,1770125438076,-5015.42411511,0.00035,120]
[404418919,1770125438087,-1369.53797506,0.00035,120]
[404418921,1770125438098,-993.71158916,0.00035,120]
[404418923,1770125438107,-169.94611223,0.00038798,15]
[404418925,1770125438116,-740.91124423,0.00038799,2]
[404418927,1770125438126,-162.94247,0.00039113,2]
[404418929,1770125438135,-1000.0,0.0004,120]
[404418931,1770125438144,-524.74136928,0.0004,120]
[404418933,1770125438153,-1000.0,0.00040033,60]
[404418935,1770125438163,-1000.0,0.00040033,60]
[404418937,1770125438172,-1000.0,0.00040033,60]
[404418939,1770125438182,-1000.0,0.00040033,60]
[404418941,1770125438191,-1000.0,0.00040033,60]
[404418943,1770125438201,-333.21098411,0.00040033,60]
[404418945,1770125438210,-3560.21530777,0.00040033,120]
[404418947,1770125438219,-393699.72469471,0.00040033,120]
[404418949,1770125438229,-199999.999997,0.00040033,30]
[404418951,1770125438238,-150.159628,0.00040033,2]
[404418953,1770125438248,-500.0,0.00040816,2]
[404418955,1770125438257,-234.89739417,0.00040816,2]
[404418957,1770125438267,-302.80359607,0.00042854,2]
[404418968,1770125438361,-240.76362571,0.00042854,2]
[404418970,1770125438373,-356.02,0.00045205,30]
[404418972,1770125438382,-433.37452628,0.00045963,2]
[404418974,1770125438392,-544.0,0.00046702,2]
[404418976,1770125438401,-162.94247,0.00047346,2]
[404418978,1770125438410,-545.04647293,0.00047579,2]
[404418980,1770125438419,-544.0,0.00047657,30]
[404418982,1770125438428,-2542.0,0.00048,120]
[404418984,1770125438437,-544.0,0.00048161,120]
[404418986,1770125438447,-544.0,0.00048424,2]
[404418988,1770125438456,-544.0,0.00048465,2]
[404418990,1770125438466,-544.0,0.00048483,7]
[404418992,1770125438476,-544.0,0.00048586,7]
[404418994,1770125438485,-544.0,0.00049007,2]
[404418995,1770125438494,-546.0,0.00049376,120]
[404418997,1770125438504,-544.0,0.00049447,2]
[404418999,1770125438513,-546.0,0.0004951,30]
[404419001,1770125438522,-544.0,0.00049889,7]
[404419003,1770125438531,-740.91124423,0.00049889,7]
[404419005,1770125438541,-44308.04598287,0.000499,120]
[404419009,1770125438560,-300.0,0.00034896,2]
[404419613,1770125470626,500.0,0.00013699,2]
[404419614,1770125476246,300.0,0.00013673,2]
[404419615,1770125476653,500.0,0.00013699,2]
[404419616,1770125476797,500.0,0.00013273,2]
[404419617,1770125480694,500.0,0.00013273,2]
[404419618,1770125480731,500.0,0.00013699,2]
[404419619,1770125524243,500.0,0.00013273,2]
[404419620,1770125533366,500.0,0.00013273,2]
[404419621,1770125536192,500.0,0.00013699,2]
[404419626,1770126066864,500.0,0.00013273,2]
[404419654,1770126632061,-4181.3182444,0.00021299,2]
[404419656,1770126632071,-300.0,0.00021513,2]
[404419658,1770126632082,-1187.47380496,0.00021513,2]
[404419669,1770126632176,-12.52619504,0.00021513,2]
[404419671,1770126632187,-1422.7461233,0.00021514,2]
[404419735,1770126638206,-3782.32341741,0.00021514,2]
[404419741,1770126638265,-1432.48428821,0.00021514,2]
[404419743,1770126638277,-300.0,0.00023389,2]
[404419746,1770126638288,-150.63285433,0.00025205,2]
[404419748,1770126638300,-378.71014232,0.00028143,2]
[404419750,1770126638312,-211.60726501,0.00031094,2]
[404419752,1770126638323,-740.91124423,0.0003154,2]
[404419754,1770126638334,-632.007763,0.00035466,2]
[404419756,1770126638345,-150.63285433,0.00035756,2]
[404419759,1770126638356,-8244.52630521,0.00039927,2]
[404419761,1770126638367,-1580.40823,0.00040012,60]
[404419763,1770126638377,-1000.0,0.00040012,60]
[404419765,1770126638388,-1000.0,0.00040012,60]
[404419767,1770126638399,-1000.0,0.00040012,60]
[404419769,1770126638411,-1000.0,0.00040012,60]
[404419771,1770126638421,-1000.0,0.00040012,60]
[404419786,1770126638542,-333.21098411,0.00040012,60]
[404419788,1770126638551,-404.14049022,0.00040026,31]
[404419790,1770126638561,-280.02820142,0.00040026,31]
[404419792,1770126638570,-500.0,0.00040027,31]
[404419794,1770126638580,-740.91124423,0.00040027,7]
[404419796,1770126638589,-168.0,0.00041964,2]
[404419798,1770126638598,-296.64765317,0.00042723,2]
[404419800,1770126638607,-168.0,0.00042999,2]
[404419802,1770126638615,-168.0,0.0004437,2]
[404419804,1770126638625,-1195.55997854,0.00044864,2]
[404419805,1770126638634,-307.0,0.0004526,2]
[404419807,1770126638643,-307.0,0.00045412,2]
[404419809,1770126638651,-150.63285433,0.00046307,2]
[404419811,1770126638660,-160.0,0.00048,120]
[404419813,1770126638670,-350.66087028,0.00048774,2]
[404419815,1770126638679,-301.19096473,0.00049315,120]
[404419817,1770126638687,-150.0,0.00049799,120]
[404419819,1770126638697,-158.779,0.000498,87]
[404419822,1770126638706,-1195.55997854,0.000498,2]
[404419823,1770126638716,-2050.68815581,0.0004989,4]
[404419825,1770126638725,-500.0,0.00049899,2]
[404419827,1770126638735,-500.0,0.00049899,2]
[404419830,1770126638745,-500.0,0.00049899,2]
[404419831,1770126638754,-490.0,0.00049899,2]
[404419834,1770126638763,-55691.95401713,0.000499,120]
[404419835,1770126638772,-100000.0,0.000499,120]
[404419838,1770126638783,-1041.66666667,0.000499,120]
[404419840,1770126638792,-100000.0,0.000499,120]
[404419841,1770126638802,-100000.0,0.000499,120]
[404419844,1770126638812,-544.0,0.00049996,30]
[404419846,1770126638822,-800.0,0.0005,120]
[404419847,1770126638832,-152.0,0.0005,120]
[404419849,1770126638841,-544.0,0.00050016,7]
[404419852,1770126638850,-151.0,0.00050136,30]
[404419854,1770126638860,-546.0,0.00050222,2]
[404419856,1770126638869,-544.0,0.00050307,2]
[404419858,1770126638879,-544.0,0.00050696,120]
[404419860,1770126638888,-544.0,0.00050915,2]
[404419862,1770126638897,-162.73048353,0.00050976,2]
[404419864,1770126638907,-544.0,0.00051115,120]
[404419865,1770126638916,-546.0,0.00051121,7]
[404419867,1770126638925,-544.0,0.00051128,2]
[404419870,1770126638935,-544.0,0.00051291,7]
[404419871,1770126638944,-544.0,0.00051313,2]
[404419874,1770126638954,-544.0,0.00051355,2]
[404419875,1770126638963,-160.183731,0.00051355,120]
[404419877,1770126638973,-151.0,0.00051355,120]
[404419879,1770126638983,-177.0,0.00051799,120]
[404419881,1770126638992,-50000.0,0.000519,120]
[404419883,1770126639002,-283.46171523,0.00052072,2]
[404419885,1770126639012,-1132.71301405,0.00052072,2]
[404419887,1770126639021,-544.0,0.00052364,30]
[404419889,1770126639031,-206.65175972,0.0005262,2]
[404419891,1770126639040,-632.007763,0.00053199,2]
[404419893,1770126639049,-204.0,0.00053799,120]
[404419895,1770126639059,-292.95545083,0.00054784,4]
[404419897,1770126639068,-292.95545083,0.00054785,4]
[404419899,1770126639077,-856.48424478,0.00054794,2]
[404419901,1770126639086,-500.0,0.00054794,120]
[404419904,1770126639096,-5103.04,0.00054794,120]
[404419905,1770126639106,-500.0,0.00054794,120]
[404419907,1770126639116,-500.0,0.00054794,120]
[404419909,1770126639126,-500.0,0.00054794,120]
[404419911,1770126639135,-489.60726262,0.00054794,120]
[404419913,1770126639144,-500.0,0.00054794,120]
[404419915,1770126639153,-500.0,0.00054794,120]
[404419918,1770126639163,-200.0,0.00054794,120]
[404419920,1770126639172,-500.0,0.00054794,120]
[404419921,1770126639181,-500.0,0.00054794,55]
[404419923,1770126639191,-500.0,0.00054794,120]
[404419925,1770126639200,-500.0,0.00054794,120]
[404419927,1770126639209,-622.63704835,0.00054794,120]
[404419929,1770126639218,-500.0,0.00054794,120]
[404419931,1770126639228,-500.0,0.00054794,120]
[404419933,1770126639240,-500.0,0.00054794,120]
[404419935,1770126639249,-500.0,0.00054794,120]
[404419937,1770126639259,-150.0,0.00054794,120]
[404419939,1770126639268,-500.0,0.00054794,120]
[404419941,1770126639278,-500.0,0.00054794,7]
[404419943,1770126639288,-1685.8,0.00054794,30]
[404419945,1770126639297,-804.89,0.00054794,120]
[404419947,1770126639307,-510.58965876,0.00054794,120]
[404419949,1770126639317,-500.0,0.00054794,120]
[404419951,1770126639326,-500.0,0.00054794,120]
[404419953,1770126639335,-500.0,0.00054794,120]
[404419955,1770126639344,-400.0,0.00054794,2]
[404419957,1770126639353,-500.0,0.00054794,120]
[404419959,1770126639362,-691.1,0.00054794,120]
[404419961,1770126639371,-500.0,0.00054794,120]
[404419963,1770126639380,-500.0,0.00054794,120]
[404419965,1770126639389,-1479.53,0.00054794,120]
[404419967,1770126639399,-502.83,0.00054794,120]
[404419969,1770126639408,-637.38,0.00054794,120]
[404419971,1770126639418,-2436.1,0.00054794,21]
[404419973,1770126639427,-419.49633129,0.00054794,120]
[404419975,1770126639437,-500.0,0.00054794,120]
[404419977,1770126639446,-500.0,0.00054794,120]
[404419979,1770126639455,-500.0,0.00054794,7]
[404419981,1770126639464,-726.04,0.00054794,90]
[404419983,1770126639473,-917.49,0.00054794,120]
[404419986,1770126639483,-500.0,0.00054794,120]
[404419988,1770126639493,-755.7,0.00054794,120]
[404419990,1770126639503,-500.0,0.00054794,120]
[404419992,1770126639512,-6331.59,0.00054794,120]
[404419993,1770126639521,-664.41,0.00054794,120]
[404419995,1770126639530,-500.0,0.00054794,120]
[404419997,1770126639539,-500.0,0.00054794,120]
[404419999,1770126639548,-500.0,0.00054794,120]
[404420002,1770126639558,-541.07,0.00054794,120]
[404420003,1770126639567,-158.49688178,0.00054794,120]
[404420005,1770126639575,-500.0,0.00054794,120]
[404420007,1770126639584,-1150.27,0.00054794,120]
[404420009,1770126639594,-1309.61,0.00054794,120]
[404420011,1770126639603,-500.0,0.00054794,120]
[404420013,1770126639612,-500.0,0.00054794,120]
[404420015,1770126639621,-627.654144,0.00054794,120]
[404420017,1770126639630,-569.28,0.00054794,120]
[404420019,1770126639640,-2576.21,0.00054794,120]
[404420021,1770126639650,-500.0,0.00054795,120]
[404420023,1770126639659,-500.0,0.00054795,120]
[404420025,1770126639669,-500.0,0.00054795,120]
[404420027,1770126639677,-500.0,0.00054795,120]
[404420029,1770126639686,-500.0,0.00054795,120]
[404420031,1770126639695,-327.23,0.00054795,120]
[404420033,1770126639704,-151.0,0.00054795,120]
[404420035,1770126639713,-500.0,0.00054795,120]
[404420037,1770126639722,-500.0,0.00054795,120]
[404420039,1770126639732,-150.0,0.00054795,120]
[404420041,1770126639741,-150.0,0.00054795,120]
[404420043,1770126639750,-500.0,0.00054795,120]
[404420045,1770126639759,-201.35213076,0.00054795,120]
[404420047,1770126639767,-150.0,0.00054795,120]
[404420049,1770126639776,-500.44827673,0.00054795,120]
[404420051,1770126639785,-150.0,0.00054795,120]
[404420054,1770126639799,-150.0,0.00054795,120]
[404420056,1770126639808,-150.0,0.00054795,120]
[404420058,1770126639818,-150.0,0.00054795,120]
[404420060,1770126639827,-150.0,0.00054795,120]
[404420062,1770126639836,-238.55409499,0.00054795,120]
[404420064,1770126639845,-150.0,0.00054795,120]
[404420066,1770126639854,-169.29764278,0.00054795,120]
[404420068,1770126639863,-150.0,0.00054795,120]
[404420070,1770126639872,-250.0,0.00054795,120]
[404420072,1770126639881,-150.0,0.00054795,120]
[404420074,1770126639890,-252.39921014,0.00054795,120]
[404420076,1770126639899,-150.0,0.00054795,120]
[404420078,1770126639909,-150.0,0.00054795,120]
[404420080,1770126639920,-150.0,0.00054795,120]
[404420082,1770126639929,-150.0,0.00054795,120]
[404420084,1770126639941,-150.0,0.00054795,120]
[404420086,1770126639950,-500.0,0.00054795,120]
[404420088,1770126639959,-150.0,0.00054795,120]
[404420090,1770126639968,-150.2916792,0.00054795,120]
[404420092,1770126639978,-150.0,0.00054795,120]
[404420094,1770126639987,-150.00137145,0.00054795,120]
[404420097,1770126639996,-150.0,0.00054795,120]
[404420099,1770126640005,-500.0,0.00054795,120]
[404420101,1770126640015,-203.34718384,0.00054795,120]
[404420103,1770126640024,-150.85571884,0.00054795,120]
[404420105,1770126640033,-150.0,0.00054795,120]
[404420107,1770126640043,-421.16340839,0.00054795,120]
[404420109,1770126640051,-150.0,0.00054795,120]
[404420111,1770126640061,-165.03832807,0.00054795,120]
[404420113,1770126640070,-200.77005998,0.00054795,120]
[404420115,1770126640079,-500.0,0.00054795,120]
[404420117,1770126640087,-500.0,0.00054795,120]
[404420119,1770126640096,-500.0,0.00054795,120]
[404420121,1770126640105,-500.0,0.00054795,120]
[404420123,1770126640119,-500.0,0.00054795,120]
[404420125,1770126640128,-500.0,0.00054795,120]
[404420126,1770126640137,-500.0,0.00054795,120]
[404420128,1770126640146,-500.0,0.00054795,120]
[404420131,1770126640155,-503.82355484,0.00054795,120]
[404420133,1770126640165,-500.0,0.00054795,120]
[404420135,1770126640174,-500.0,0.00054795,120]
[404420137,1770126640183,-500.0,0.00054795,120]
[404420138,1770126640192,-500.0,0.00054795,120]
[404420141,1770126640201,-372.3767946,0.00054795,120]
[404420143,1770126640210,-500.0,0.00054795,120]
[404420144,1770126640220,-500.0,0.00054795,120]
[404420147,1770126640230,-500.0,0.00054795,120]
[404420149,1770126640242,-500.0,0.00054795,120]
[404420151,1770126640251,-500.0,0.00054795,120]
[404420153,1770126640260,-500.0,0.00054795,120]
[404420154,1770126640269,-500.0,0.00054795,120]
[404420156,1770126640278,-150.0,0.00054795,120]
[404420159,1770126640289,-218.98048368,0.00054795,120]
[404420160,1770126640298,-500.0,0.00054795,120]
[404420163,1770126640308,-500.0,0.00054795,120]
[404420165,1770126640317,-500.0,0.00054795,120]
[404420167,1770126640327,-613.64178547,0.00054795,120]
[404420169,1770126640336,-155.12344976,0.00054795,120]
[404420171,1770126640344,-500.0,0.00054795,120]
[404420173,1770126640353,-500.0,0.00054795,86]
[404420175,1770126640362,-500.0,0.00054795,86]
[404420176,1770126640371,-500.0,0.00054795,120]
[404420178,1770126640380,-500.0,0.00054795,86]
[404420181,1770126640390,-500.0,0.00054795,120]
[404420183,1770126640401,-500.0,0.00054795,86]
[404420185,1770126640411,-500.0,0.00054795,120]
[404420186,1770126640421,-500.0,0.00054795,120]
[404420188,1770126640430,-153.90514756,0.00054795,86]
[404420190,1770126640439,-500.0,0.00054795,120]
[404420192,1770126640448,-204.96513259,0.00054795,120]
[404420195,1770126640457,-500.0,0.00054795,120]
[404420197,1770126640467,-265.30464225,0.00054795,120]
[404420199,1770126640476,-500.0,0.00054795,120]
[404420201,1770126640485,-500.0,0.00054795,120]
[404420203,1770126640494,-500.0,0.00054795,120]
[404420205,1770126640503,-500.0,0.00054795,120]
[404420207,1770126640513,-500.0,0.00054795,120]
[404420209,1770126640521,-500.0,0.00054795,120]
[404420211,1770126640530,-500.0,0.00054795,120]
[404420213,1770126640539,-500.0,0.00054795,120]
[404420222,1770126640616,-633.42207071,0.00054795,120]
[404420224,1770126640625,-155.61422014,0.00054795,120]
[404420226,1770126640634,-500.0,0.00054795,120]
[404420228,1770126640644,-500.0,0.00054795,120]
[404420230,1770126640653,-634.42938818,0.00054795,120]
[404420232,1770126640662,-500.0,0.00054795,120]
[404420234,1770126640671,-500.0,0.00054795,120]
[404420236,1770126640680,-500.0,0.00054795,120]
[404420238,1770126640689,-201.59957773,0.00054795,120]
[404420240,1770126640698,-150.0,0.00054795,120]
[404420242,1770126640707,-150.0,0.00054795,120]
[404420244,1770126640715,-150.0,0.00054795,120]
[404420246,1770126640724,-204.78312062,0.00054795,120]
[404420248,1770126640734,-150.0,0.00054795,2]
[404420250,1770126640743,-500.0,0.00054795,120]
[404420252,1770126640752,-556.06270442,0.00054795,120]
[404420254,1770126640761,-500.0,0.00054795,120]
[404420256,1770126640769,-500.0,0.00054795,120]
[404420258,1770126640778,-598.8969387,0.00054795,120]
[404420260,1770126640788,-150.0,0.00054795,120]
[404420262,1770126640797,-150.0,0.00054795,120]
[404420264,1770126640806,-235.54889542,0.00054795,120]
[404420266,1770126640815,-500.0,0.00054795,120]
[404420268,1770126640824,-543.255282,0.00054795,120]
[404420270,1770126640834,-12682.24958631,0.000549,120]
[404420272,1770126640843,-151.0,0.000549,120]
[404420274,1770126640853,-163.581396,0.000549,7]
[404420276,1770126640862,-292.95545083,0.0005499,4]
[404420278,1770126640871,-50000.0,0.00055,100]
[404420280,1770126640880,-151.0,0.00055,120]
[404420282,1770126640889,-151.0,0.00055,120]
[404420284,1770126640898,-292.95545083,0.0005539,4]
[404420286,1770126640908,-152.0,0.000554,120]
[404420288,1770126640917,-411.67282491,0.00055452,30]
[404420290,1770126640926,-231.0,0.00055799,120]
[404420292,1770126640935,-292.95545083,0.0005599,4]
[404420294,1770126640945,-50000.0,0.00056,100]
[404420296,1770126640954,-292.95545083,0.0005619,5]
[404420298,1770126640963,-50000.0,0.000562,120]
[404420300,1770126640972,-151.0,0.000562,120]
[404420302,1770126640981,-190.64288,0.000562,120]
[404420304,1770126640989,-151.0,0.000562,120]
[404420306,1770126640998,-151.0,0.000562,120]
[404420308,1770126641007,-151.0,0.000562,120]
[404420310,1770126641016,-20000.0,0.0005625,120]
[404420312,1770126641025,-214.253053,0.0005625,120]
[404420314,1770126641034,-151.0,0.0005625,120]
[404420316,1770126641043,-292.95545083,0.0005629,5]
[404420318,1770126641051,-50000.0,0.000563,115]
[404420320,1770126641061,-316.92424181,0.00056483,7]
[404420322,1770126641070,-398.5892795,0.00056483,7]
[404420324,1770126641079,-292.95545083,0.0005649,5]
[404420326,1770126641088,-50000.0,0.000565,110]
[404420328,1770126641097,-151.0,0.000565,120]
[404420330,1770126641106,-151.0,0.000565,120]
[404420332,1770126641115,-214.127785,0.000565,120]
[404420334,1770126641124,-151.0,0.000565,120]
[404420336,1770126641134,-292.95545083,0.0005654,5]
[404420338,1770126641143,-50000.0,0.0005655,110]
[404420339,1770126641152,-151.0,0.0005655,120]
[404420342,1770126641161,-500.0,0.00057534,120]
[404420344,1770126641171,-563.56000031,0.00057534,120]
[404420346,1770126641180,-500.0,0.00057534,120]
[404420348,1770126641189,-1479.53,0.00057534,120]
[404420350,1770126641199,-502.83,0.00057534,120]
[404420351,1770126641208,-637.38,0.00057534,120]
[404420352,1770126641217,-2436.1,0.00057534,21]
[404420353,1770126641227,-311.51670753,0.00057534,120]
[404420354,1770126641237,-500.0,0.00057534,120]
[404420355,1770126641248,-500.0,0.00057534,7]
[404420356,1770126641258,-726.04,0.00057534,90]
[404420357,1770126641267,-917.49,0.00057534,120]
[404420358,1770126641277,-500.0,0.00057534,120]
[404420359,1770126641286,-755.7,0.00057534,120]
[404420360,1770126641295,-500.0,0.00057534,120]
[404420361,1770126641305,-6331.59,0.00057534,120]
[404420362,1770126641316,-664.41,0.00057534,120]
[404420363,1770126641325,-500.0,0.00057534,120]
[404420364,1770126641335,-500.0,0.00057534,120]
[404420365,1770126641344,-500.0,0.00057534,120]
[404420366,1770126641353,-541.07,0.00057534,120]
[404420367,1770126641362,-566.15,0.00057534,120]
[404420368,1770126641371,-1150.27,0.00057534,120]
[404420369,1770126641380,-1309.61,0.00057534,120]
[404420370,1770126641390,-500.0,0.00057534,120]
[404420372,1770126641399,-156.92358252,0.00057534,120]
[404420373,1770126641408,-569.28,0.00057534,120]
[404420374,1770126641417,-2576.21,0.00057534,120]
[404420376,1770126641426,-585.91090166,0.0005799,5]
[404420377,1770126641435,-19999.02135501,0.00058,90]
[404420379,1770126641444,-3000.0,0.00058,120]
[404420381,1770126641453,-47025.09040627,0.00058,120]
[404420383,1770126641463,-151.0,0.00058,120]
[404420385,1770126641472,-151.0,0.00058,120]
[404420387,1770126641480,-245.34276,0.00058,120]
[404420389,1770126641489,-487.0,0.00058823,120]
[404420391,1770126641498,-487.0,0.00058823,120]
[404420393,1770126641507,-826.91,0.00058823,120]
[404420395,1770126641516,-12102.31199067,0.00058864,120]
[404420397,1770126641526,-4470.43992116,0.000589,120]
[404420399,1770126641535,-292.95545083,0.0005899,5]
[404420401,1770126641545,-800.0,0.00059,120]
[404420403,1770126641554,-3000.0,0.00059,120]
[404420405,1770126641563,-20000.0,0.00059,120]
[404420407,1770126641572,-88888.0,0.00059,120]
[404420409,1770126641582,-160.065506,0.00059,120]
[404420411,1770126641591,-292.95545083,0.0005909,5]
[404420413,1770126641600,-50000.0,0.000591,120]
[404420415,1770126641609,-370.11,0.000591,14]
[404420417,1770126641618,-487.0,0.000591,120]
[404420419,1770126641628,-487.0,0.000591,120]
[404420421,1770126641637,-487.0,0.000591,120]
[404420422,1770126641646,-487.0,0.000591,120]
[404420424,1770126641655,-487.0,0.000591,120]
[404420426,1770126641664,-487.0,0.000591,120]
[404420428,1770126641673,-487.0,0.000591,120]
[404420430,1770126641682,-487.0,0.000591,120]
[404420432,1770126641691,-487.0,0.000591,120]
[404420434,1770126641700,-487.0,0.000591,120]
[404420436,1770126641709,-487.0,0.000591,120]
[404420438,1770126641718,-487.0,0.000591,120]
[404420440,1770126641727,-487.0,0.000591,120]
[404420442,1770126641737,-487.0,0.000591,120]
[404420444,1770126641747,-487.0,0.000591,120]
[404420446,1770126641757,-487.0,0.000591,120]
[404420448,1770126641766,-487.0,0.000591,120]